[Event "WTCC-65 2018"]
[Site "Radebeul"]
[Date "2018.07.13"]
[Round "7"]
[White "Giffard, Nicolas"]
[Black "Steedman, James"]
[Result "1-0"]
[ECO "E12"]
[WhiteElo "2260"]
[BlackElo "2132"]
[Annotator "NA"]
[PlyCount "61"]
[EventDate "2018.07.07"]
[EventType "team-tourn"]
[EventCountry "GER"]
[SourceTitle "playchess.com"]
[Source "ChessBase"]
[SourceQuality "1"]
[TimeControl "40/5400+30:1800+30"]

1. d4 {[%emt 0:00:00]} Nf6 {[%emt 0:00:00]} 2. c4 {[%emt 0:00:00]} e6 {[%emt 0:00:00]} 3. Nf3 {[%emt 0:00:00]} b6 {[%emt 0:00:06]} 4. a3 {[%emt 0:00:00]} Bb7 {[%emt 0:03:51]} 5. Nc3 {[%emt 0:00:22]} d5 {[%emt 0:01:15]} 6. cxd5 {[%emt 0:00:18]} Nxd5 {[%emt 0:01:16]} 7. Qc2 {[%emt 0:01:03]} Be7 {[%emt 0:01:48]} 8. Bd2 {[%emt 0:01:11]} O-O {[%emt 0:01:08]} 9. e4 {[%emt 0:00:12]} Nxc3 {[%emt 0:01:26]} 10. Bxc3 {[%emt 0:00:08]} c5 {[%emt 0:01:29]} 11. Rd1 {[%emt 0:08:49]} Qc7 {[%emt 0:13:46]} 12. d5 {[%emt 0:03:28]} exd5 {[%emt 0:03:53]} 13. exd5 {[%emt 0:00:11]} Nd7 {[%emt 0:05:02]} 14. Bd3 {[%emt 0:00:45]} g6 {[%emt 0:07:33]} 15. h4 {[%emt 0:06:39]} Bxd5 {[%emt 0:03:33]} 16. h5 {[%emt 0:05:10]} Rae8 {[%emt 0:05:50]} 17. hxg6 {[%emt 0:01:49]} Bf6+ {[%emt 0:00:23]} 18. Kf1 {[%emt 0:00:08]} Bxf3 {[%emt 0:06:25]} 19. gxf7+ {[%emt 0:01:07]} Rxf7 {[%emt 0:02:06]} 20. Bxh7+ {[%emt 0:00:57]} Kf8 {[%emt 0:01:01]} 21. gxf3 {[%emt 0:00:13]} Bxc3 {[%emt 0:02:20]} 22. Qxc3 {[%emt 0:02:42]} Qe5 {[%emt 0:00:53]} 23. Bg6 {[%emt 0:03:07]} Qe2+ {[%emt 0:01:21]} 24. Kg2 {[%emt 0:00:06]} Re5 {[%emt 0:00:38]} 25. Bxf7 {[%emt 0:06:43]} Rg5+ {[%emt 0:03:40]} 26. Kh3 {[%emt 0:00:08]} Qxf2 {[%emt 0:00:51]} 27. Qh8+ {[%emt 0:02:33]} Kxf7 {[%emt 0:05:06]} 28. Rxd7+ {[%emt 0:00:22]} Ke6 {[%emt 0:00:51]} 29. Qe8+ {[%emt 0:00:09]} Kf6 {[%emt 0:01:16]} 30. Qf7+ {[%emt 0:00:07]} Ke5 {[%emt 0:00:20]} 31. Rd5# 1-0

[Event "WTCC-65 2018"]
[Site "Radebeul"]
[Date "2018.07.13"]
[Round "7"]
[White "Kierzek, Matthias"]
[Black "Zhelnin, Vladimir V"]
[Result "1/2-1/2"]
[ECO "E73"]
[WhiteElo "2247"]
[BlackElo "2453"]
[Annotator "RC"]
[PlyCount "53"]
[EventDate "2018.07.07"]
[EventType "team-tourn"]
[EventCountry "GER"]
[SourceTitle "playchess.com"]
[Source "ChessBase"]
[SourceQuality "1"]
[TimeControl "40/5400+30:1800+30"]

1. d4 {[%emt 0:00:00]} Nf6 {[%emt 0:00:14]} 2. c4 {[%emt 0:00:00]} d6 {[%emt 0:01:57]} 3. Nc3 {[%emt 0:00:00]} g6 {[%emt 0:00:55]} 4. e4 {[%emt 0:00:10]} Bg7 {[%emt 0:00:07]} 5. Be2 {[%emt 0:00:08]} O-O {[%emt 0:00:52]} 6. Bg5 {[%emt 0:00:06]} c6 {[%emt 0:01:32]} 7. Qd2 {[%emt 0:02:53]} a6 {[%emt 0:01:59]} 8. Rd1 {[%emt 0:03:11]} b5 {[%emt 0:00:54]} 9. cxb5 {[%emt 0:05:33]} axb5 {[%emt 0:01:08]} 10. a3 {[%emt 0:00:14]} Na6 {[%emt 0:13:53]} 11. Nf3 {[%emt 0:01:58]} b4 {[%emt 0:05:51]} 12. axb4 {[%emt 0:00:43]} Nxb4 {[%emt 0:00:07]} 13. O-O {[%emt 0:02:01]} Be6 {[%emt 0:08:54]} 14. e5 {[%emt 0:17:42]} Nfd5 {[%emt 0:07:38]} 15. Ne4 {[%emt 0:11:53]} dxe5 {[%emt 0:07:31]} 16. dxe5 {[%emt 0:01:42]} Bf5 {[%emt 0:06:27]} 17. Ng3 {[%emt 0:09:47]} Bg4 {[%emt 0:03:26]} 18. Bh6 {[%emt 0:06:11]} Ra2 {[%emt 0:02:50]} 19. Bxg7 {[%emt 0:02:12]} Kxg7 {[%emt 0:00:02]} 20. Qd4 {[%emt 0:01:15]} Bxf3 {[%emt 0:01:20]} 21. Bxf3 {[%emt 0:05:42]} Qb6 {[%emt 0:03:57]} 22. Qd2 {[%emt 0:08:04]} e6 {[%emt 0:20:17]} 23. Nh5+ {[%emt 0:04:00]} gxh5 {[%emt 0:04:20]} 24. Qg5+ {[%emt 0:00:06]} Kh8 {[%emt 0:00:02]} 25. Bxd5 {[%emt 0:00:09]} Nxd5 {[%emt 0:02:09]} 26. Rxd5 {[%emt 0:00:07]} cxd5 {[%emt 0:00:40]} 27. Qf6+ 1/2-1/2

[Event "WTCC-65 2018"]
[Site "Radebeul"]
[Date "2018.07.13"]
[Round "7"]
[White "Povah, Nigel E"]
[Black "Dekan, Hans"]
[Result "1-0"]
[ECO "D00"]
[WhiteElo "2245"]
[BlackElo "2134"]
[Annotator "NA"]
[PlyCount "135"]
[EventDate "2018.07.07"]
[EventType "team-tourn"]
[EventCountry "GER"]
[SourceTitle "playchess.com"]
[Source "ChessBase"]
[SourceQuality "1"]
[TimeControl "40/5400+30:1800+30"]

1. d4 {[%emt 0:00:00]} d5 {[%emt 0:00:00]} 2. Bf4 {[%emt 0:00:00]} c6 {[%emt 0:01:10]} 3. e3 {[%emt 0:00:00]} Bf5 {[%emt 0:00:24]} 4. c4 {[%emt 0:00:37] D00: 1 d4 d5: Unusual lines} e6 {[%emt 0:00:20]} 5. Nc3 {[%emt 0:01:26]} Bd6 {[%emt 0:02:05]} (5... Nd7 6. Qb3 Qb6 7. c5 Qxb3 8. axb3 a6 9. Nf3 h6 10. b4 Rc8 11. Nd2 f6 {1-0 (29) Grischuk,A (2774)-Bartel,M (2622) Berlin 2015}) 6. Qb3 {[%emt 0:02:33]} b6 {[%emt 0:14:01]} 7. Bg3 {[%emt 0:15:07]} Nf6 {[%emt 0:02:15]} 8. Nf3 {[%emt 0:01:10]} Bxg3 {[%emt 0:00:18]} 9. hxg3 {[%emt 0:00:08]} O-O $146 {[%emt 0:00:07]} ({Predecessor:} 9... h6 10. Be2 O-O {0-1 (20) Pfeifer,A (2067)-Gromovs,S (2297) Venice 2011}) 10. Rc1 {[%emt 0:04:39]} Re8 {[%emt 0:09:56]} 11. Be2 {[%emt 0:03:11]} Nbd7 {[%emt 0:18:48]} 12. cxd5 {[%emt 0:13:50]} exd5 {[%emt 0:03:53]} 13. a4 {[%emt 0:13:00]} a5 {[%emt 0:01:45]} 14. O-O {[%emt 0:05:41]} Qe7 {[%emt 0:02:53]} 15. Na2 {[%emt 0:04:10]} c5 {[%emt 0:02:02]} 16. dxc5 {[%emt 0:03:44]} bxc5 {[%emt 0:01:15]} 17. Bb5 {[%emt 0:01:43]} Reb8 {[%emt 0:09:36]} 18. Nc3 {[%emt 0:01:56]} c4 {[%emt 0:01:09]} 19. Qa2 {[%emt 0:01:52]} Ne5 {[%emt 0:07:04]} 20. Rcd1 {[%emt 0:04:40]} Nd3 {[%emt 0:05:28]} 21. Nd4 {[%emt 0:04:29]} Bd7 {[%emt 0:02:23]} 22. b3 {[%emt 0:02:24]} Nb4 {[%emt 0:03:09]} 23. Qa3 {[%emt 0:04:34]} Rc8 {[%emt 0:02:08]} 24. bxc4 {[%emt 0:01:55]} dxc4 {[%emt 0:00:19]} 25. Rd2 {[%emt 0:02:15]} Be6 {[%emt 0:03:34]} 26. Rfd1 {[%emt 0:01:03]} Bg4 {[%emt 0:00:21]} 27. Rc1 {[%emt 0:00:31]} Be6 {[%emt 0:00:43]} 28. Rcd1 {[%emt 0:02:26]} Bg4 {[%emt 0:00:14]} 29. Re1 {[%emt 0:00:44]} Qc5 {[%emt 0:01:39]} 30. f3 {[%emt 0:00:47]} Be6 {[%emt 0:00:21]} 31. Nxe6 {[%emt 0:00:32]} fxe6 {[%emt 0:00:13]} 32. Ree2 {[%emt 0:02:08]} Rd8 {[%emt 0:00:46]} 33. Qc1 {[%emt 0:00:49]} Rd3 {[%emt 0:00:37]} 34. Nd1 {[%emt 0:00:19]} Rad8 {[%emt 0:02:45]} 35. Bxc4 {[%emt 0:00:28]} Kf8 {[%emt 0:01:35]} 36. Rxd3 {[%emt 0:01:04]} Rxd3 {[%emt 0:00:07]} 37. Nb2 {[%emt 0:00:23]} Rd6 {[%emt 0:00:58]} 38. Kf2 {[%emt 0:01:22]} Nfd5 {[%emt 0:00:35]} 39. Qe1 {[%emt 0:00:43]} Nb6 {[%emt 0:00:55]} 40. Bb5 {[%emt 0:00:25]} Qe5 {[%emt 0:01:09]} 41. Rd2 {[%emt 0:03:21]} Rd5 {[%emt 0:06:10]} 42. Rxd5 {[%emt 0:04:51]} exd5 {[%emt 0:00:44]} 43. Qd2 {[%emt 0:01:33]} Ke7 {[%emt 0:07:31]} 44. Nd3 {[%emt 0:03:36]} Qd6 {[%emt 0:05:33]} (44... Nxd3+ $16 {was worth a try.} 45. Qxd3 Qb2+ 46. Kg1 g6) 45. Qc3 {[%emt 0:01:29]} Kf7 {[%emt 0:03:14]} 46. Qd4 {[%emt 0:02:25]} Nc2 {[%emt 0:03:41]} 47. Qe5 {[%emt 0:05:10]} Qxe5 {[%emt 0:04:01]} 48. Nxe5+ {[%emt 0:00:06]} Ke6 {[%emt 0:00:02]} 49. Nc6 {[%emt 0:00:24]} Nc4 {[%emt 0:00:34]} 50. Bxc4 {[%emt 0:00:32]} dxc4 {[%emt 0:00:05]} 51. Nxa5 {[%emt 0:00:18]} Kd5 {[%emt 0:00:02]} 52. Ke2 {[%emt 0:02:06]} Kc5 {[%emt 0:02:37]} 53. Kd2 {[%emt 0:01:50]} Na3 {[%emt 0:00:33]} 54. e4 {[%emt 0:05:12]} Kb4 {[%emt 0:00:35]} 55. Nc6+ {[%emt 0:00:59]} Kxa4 {[%emt 0:00:30]} 56. Kc3 {[%emt 0:01:26]} Kb5 {[%emt 0:00:42]} 57. Nd4+ {[%emt 0:00:16]} Kc5 {[%emt 0:00:13]} 58. Ne6+ {[%emt 0:00:38]} Kb5 {[%emt 0:00:50]} 59. e5 {[%emt 0:00:48]} Nb1+ {[%emt 0:00:46]} 60. Kb2 {[%emt 0:01:21]} Nd2 {[%emt 0:00:13]} 61. Nd4+ {[%emt 0:00:19]} Kc5 {[%emt 0:01:17] [#]} 62. e6 $2 {[%emt 0:00:17]} (62. Nf5 $1 $18) 62... Kxd4 $2 {[%emt 0:01:23]} (62... Kd6 $14) 63. e7 {[%emt 0:00:05]} Kd3 {[%emt 0:00:08]} 64. e8=Q {[%emt 0:00:08]} c3+ {[%emt 0:00:06]} 65. Ka2 {[%emt 0:00:39]} c2 {[%emt 0:00:13]} 66. Qd7+ {[%emt 0:01:26]} Ke2 {[%emt 0:00:38]} 67. Kb2 {[%emt 0:00:24]} Kd1 {[%emt 0:00:51]} 68. Qa4 {[%emt 0:00:05]} 1-0

[Event "WTCC-65 2018"]
[Site "Radebeul"]
[Date "2018.07.13"]
[Round "7"]
[White "Kargoll, Herbert"]
[Black "Gruzmann, Boris"]
[Result "0-1"]
[ECO "B51"]
[WhiteElo "2230"]
[BlackElo "2176"]
[Annotator "NA"]
[PlyCount "114"]
[EventDate "2018.07.07"]
[EventType "team-tourn"]
[EventCountry "GER"]
[SourceTitle "playchess.com"]
[Source "ChessBase"]
[SourceQuality "1"]
[TimeControl "40/5400+30:1800+30"]

1. e4 {[%emt 0:00:00]} c5 {[%emt 0:00:00]} 2. Nf3 {[%emt 0:00:00]} d6 {[%emt 0:00:00]} 3. Bb5+ {[%emt 0:00:00]} Nd7 {[%emt 0:00:06]} 4. O-O {[%emt 0:01:18]} a6 {[%emt 0:00:13]} 5. Bxd7+ {[%emt 0:02:54]} Bxd7 {[%emt 0:00:16]} 6. d4 {[%emt 0:00:09]} cxd4 {[%emt 0:00:25]} 7. Qxd4 {[%emt 0:00:06]} e5 {[%emt 0:00:54]} 8. Qd3 {[%emt 0:03:49]} h6 {[%emt 0:00:15]} 9. c4 {[%emt 0:14:17]} Rc8 {[%emt 0:06:20]} 10. Be3 {[%emt 0:19:49]} Nf6 {[%emt 0:00:58]} 11. Nc3 {[%emt 0:02:02]} Qc7 {[%emt 0:03:49]} 12. Nd2 {[%emt 0:00:38]} Be6 {[%emt 0:01:13]} 13. Nd5 {[%emt 0:01:46]} Bxd5 {[%emt 0:00:21]} 14. exd5 {[%emt 0:03:19]} Be7 {[%emt 0:01:24]} 15. f3 {[%emt 0:04:29]} O-O {[%emt 0:00:16]} 16. Rac1 {[%emt 0:05:29]} Qd7 {[%emt 0:06:15]} 17. b4 {[%emt 0:01:41]} b5 {[%emt 0:03:35]} 18. Rfd1 {[%emt 0:05:35]} bxc4 {[%emt 0:04:53]} 19. Nxc4 {[%emt 0:00:04]} Qb5 {[%emt 0:00:41]} 20. a3 {[%emt 0:00:57]} Rc7 {[%emt 0:05:04]} 21. Qb3 {[%emt 0:07:56]} Rb8 {[%emt 0:05:17]} 22. Kf2 {[%emt 0:10:19]} Bf8 {[%emt 0:07:17]} 23. Qa2 {[%emt 0:06:40]} Rbc8 {[%emt 0:06:31]} 24. Na5 {[%emt 0:01:23]} Rxc1 {[%emt 0:00:32]} 25. Bxc1 {[%emt 0:00:02]} Qa4 {[%emt 0:00:26]} 26. Qb3 {[%emt 0:01:31]} Qxb3 {[%emt 0:03:15]} 27. Nxb3 {[%emt 0:00:02]} Rc3 {[%emt 0:00:13]} 28. Na5 {[%emt 0:00:34]} Nxd5 {[%emt 0:00:56]} 29. Rxd5 {[%emt 0:01:10]} Rxc1 {[%emt 0:00:10]} 30. Nb7 {[%emt 0:00:32]} Rc7 {[%emt 0:01:47]} 31. Na5 {[%emt 0:00:26]} Rc3 {[%emt 0:01:52]} 32. a4 {[%emt 0:00:34]} Ra3 {[%emt 0:01:49]} 33. b5 {[%emt 0:00:09]} axb5 {[%emt 0:00:48]} 34. Rxb5 {[%emt 0:00:38]} Rxa4 {[%emt 0:00:13]} 35. Nc6 {[%emt 0:00:30]} Rc4 {[%emt 0:02:59]} 36. Nb4 {[%emt 0:01:45]} Rc5 {[%emt 0:01:25]} 37. Rb8 {[%emt 0:00:05]} f5 {[%emt 0:00:32]} 38. Ke3 {[%emt 0:00:42]} Kf7 {[%emt 0:00:49]} 39. Rb7+ {[%emt 0:00:11]} Ke6 {[%emt 0:00:53]} 40. Na6 {[%emt 0:00:16]} Ra5 {[%emt 0:02:59]} 41. Nc7+ {[%emt 0:30:18]} Kd7 {[%emt 0:37:28]} 42. Nd5+ {[%emt 0:00:17]} Kc6 {[%emt 0:00:15]} 43. Rf7 {[%emt 0:00:06]} Kxd5 {[%emt 0:00:07]} 44. Rxf8 {[%emt 0:00:03]} f4+ {[%emt 0:00:46]} 45. Kf2 {[%emt 0:00:22]} Ra2+ {[%emt 0:01:23]} 46. Kg1 {[%emt 0:00:35]} Ra7 47. g3 {[%emt 0:01:27]} fxg3 {[%emt 0:03:40]} 48. hxg3 {[%emt 0:00:05]} Kd4 {[%emt 0:00:17]} 49. Rb8 {[%emt 0:01:25]} d5 {[%emt 0:02:11]} 50. Rb2 {[%emt 0:00:26]} Kc3 {[%emt 0:00:47]} 51. Re2 {[%emt 0:00:12]} Re7 {[%emt 0:00:39]} 52. Kf2 {[%emt 0:00:11]} d4 {[%emt 0:03:51]} 53. Ra2 {[%emt 0:00:09]} Rb7 {[%emt 0:00:29]} 54. Ra5 {[%emt 0:00:56]} Rb2+ {[%emt 0:00:21]} 55. Kf1 {[%emt 0:00:23]} d3 {[%emt 0:00:30]} 56. Rxe5 {[%emt 0:00:07]} Rb1+ {[%emt 0:00:17]} 57. Kf2 {[%emt 0:01:18]} d2 {[%emt 0:00:09]} 0-1

[Event "WTCC-65 2018"]
[Site "Radebeul"]
[Date "2018.07.13"]
[Round "7"]
[White "Nehmert, Ulrich"]
[Black "Donchenko, Anatoly"]
[Result "1-0"]
[ECO "B18"]
[WhiteElo "2220"]
[BlackElo "2301"]
[Annotator "NA"]
[PlyCount "77"]
[EventDate "2018.07.07"]
[EventType "team-tourn"]
[EventCountry "GER"]
[SourceTitle "playchess.com"]
[Source "ChessBase"]
[SourceQuality "1"]
[TimeControl "40/5400+30:1800+30"]

1. e4 {[%emt 0:00:00]} c6 {[%emt 0:00:00]} 2. d4 {[%emt 0:00:21]} d5 {[%emt 0:00:08]} 3. Nd2 {[%emt 0:00:49]} dxe4 {[%emt 0:00:19]} 4. Nxe4 {[%emt 0:01:44]} Bf5 {[%emt 0:00:18]} 5. Ng3 {[%emt 0:00:00]} Bg6 {[%emt 0:00:11]} 6. h4 {[%emt 0:00:28]} h6 {[%emt 0:00:11]} 7. h5 {[%emt 0:02:16]} Bh7 {[%emt 0:00:10]} 8. Nf3 {[%emt 0:00:11]} Nd7 {[%emt 0:01:51]} 9. Bd3 {[%emt 0:00:36]} Bxd3 {[%emt 0:00:12]} 10. Qxd3 {[%emt 0:00:03]} e6 {[%emt 0:00:18]} 11. Bf4 {[%emt 0:02:43]} Qa5+ {[%emt 0:00:48]} 12. c3 {[%emt 0:04:17]} Ngf6 {[%emt 0:00:45]} 13. b4 {[%emt 0:14:56]} Qa3 {[%emt 0:04:26]} 14. Qc2 {[%emt 0:14:00]} a5 {[%emt 0:04:25]} 15. Bc1 {[%emt 0:00:40]} axb4 {[%emt 0:00:29]} 16. Bxa3 {[%emt 0:00:46]} Rxa3 {[%emt 0:00:01]} 17. cxb4 {[%emt 0:03:43]} Bxb4+ {[%emt 0:00:22]} 18. Nd2 {[%emt 0:01:35]} Nd5 {[%emt 0:04:01]} 19. O-O {[%emt 0:05:11]} Rc3 {[%emt 0:00:12]} 20. Qb2 {[%emt 0:00:56]} N7b6 {[%emt 0:01:29]} 21. a3 {[%emt 0:04:51]} Be7 {[%emt 0:04:36]} 22. Nge4 {[%emt 0:02:17]} Rd3 {[%emt 0:00:23]} 23. Nc5 {[%emt 0:01:58]} Rc3 {[%emt 0:00:19]} 24. Nde4 {[%emt 0:02:28]} Rc4 {[%emt 0:00:30]} 25. Nxb7 {[%emt 0:02:11]} O-O {[%emt 0:00:17]} 26. Na5 {[%emt 0:00:19]} Na4 {[%emt 0:04:37]} 27. Nxc4 {[%emt 0:01:19]} Nxb2 {[%emt 0:00:11]} 28. Nxb2 {[%emt 0:00:04]} Nf4 {[%emt 0:00:31]} 29. Rfd1 {[%emt 0:02:31]} f5 {[%emt 0:00:50]} 30. Nc5 {[%emt 0:01:27]} e5 {[%emt 0:01:12]} 31. Nbd3 {[%emt 0:08:48]} Ne2+ {[%emt 0:01:07]} 32. Kf1 {[%emt 0:00:08]} Nc3 {[%emt 0:00:29]} 33. Nxe5 {[%emt 0:01:27]} Nxd1 {[%emt 0:00:10]} 34. Rxd1 {[%emt 0:00:06]} Ra8 {[%emt 0:00:12]} 35. Nxc6 {[%emt 0:01:00]} Bd6 {[%emt 0:00:16]} 36. Ra1 {[%emt 0:01:13]} Rc8 {[%emt 0:01:34]} 37. Nb4 {[%emt 0:02:14]} Rb8 {[%emt 0:01:10]} 38. Nbd3 {[%emt 0:00:55]} Bc7 {[%emt 0:00:37]} 39. Na6 {[%emt 0:00:10]} 1-0

[Event "WTCC-65 2018"]
[Site "Radebeul"]
[Date "2018.07.13"]
[Round "7"]
[White "Ulrichsen, Jarl H"]
[Black "Sharif, Mehrshad"]
[Result "1/2-1/2"]
[ECO "D37"]
[WhiteElo "2196"]
[BlackElo "2353"]
[Annotator "NA"]
[PlyCount "27"]
[EventDate "2018.07.07"]
[EventType "team-tourn"]
[EventCountry "GER"]
[SourceTitle "playchess.com"]
[Source "ChessBase"]
[SourceQuality "1"]
[TimeControl "40/5400+30:1800+30"]

1. d4 {[%emt 0:00:00]} d5 {[%emt 0:00:00]} 2. Nf3 {[%emt 0:00:43]} Nf6 {[%emt 0:00:13]} 3. c4 {[%emt 0:00:17]} e6 {[%emt 0:00:15]} 4. Nc3 {[%emt 0:00:40]} Nbd7 {[%emt 0:00:47]} 5. e3 {[%emt 0:03:07]} a6 {[%emt 0:01:43]} 6. Bd3 {[%emt 0:02:10]} dxc4 {[%emt 0:02:12]} 7. Bxc4 {[%emt 0:00:09]} b5 {[%emt 0:01:36]} 8. Be2 {[%emt 0:06:37]} Bb7 {[%emt 0:01:04]} 9. O-O {[%emt 0:00:21]} c5 {[%emt 0:01:41]} 10. b3 {[%emt 0:08:17]} Bd6 {[%emt 0:04:06]} 11. Bb2 {[%emt 0:04:02]} O-O {[%emt 0:03:17]} 12. dxc5 {[%emt 0:12:59]} Bxc5 {[%emt 0:04:18]} 13. Nd4 {[%emt 0:13:12]} Ne5 {[%emt 0:10:21]} 14. Nf3 {[%emt 0:03:59]} 1/2-1/2

[Event "WTCC-65 2018"]
[Site "Radebeul"]
[Date "2018.07.13"]
[Round "7"]
[White "Singer, Hans"]
[Black "Mishuchkov, Nikolai M"]
[Result "1/2-1/2"]
[ECO "D38"]
[WhiteElo "2175"]
[BlackElo "2311"]
[Annotator "ChessBase"]
[PlyCount "150"]
[EventDate "2018.07.07"]
[EventType "team-tourn"]
[EventCountry "GER"]
[SourceTitle "playchess.com"]
[Source "ChessBase"]
[SourceQuality "1"]
[TimeControl "40/5400+30:1800+30"]

1. Nf3 {[%emt 0:00:00]} d5 {[%emt 0:00:24]} 2. d4 {[%emt 0:00:00]} Nf6 {[%emt 0:00:06]} 3. c4 {[%emt 0:00:12]} e6 {[%emt 0:00:05]} 4. Nc3 {[%emt 0:00:17]} Bb4 {[%emt 0:00:07]} 5. Bg5 {[%emt 0:06:15]} h6 {[%emt 0:00:34]} 6. Bxf6 {[%emt 0:00:22]} Qxf6 {[%emt 0:00:06]} 7. Qa4+ {[%emt 0:00:34]} Nc6 {[%emt 0:00:12]} 8. e3 {[%emt 0:00:35]} O-O {[%emt 0:08:05]} 9. cxd5 {[%emt 0:01:06]} exd5 {[%emt 0:00:12]} 10. Be2 {[%emt 0:00:15]} Be6 {[%emt 0:14:38]} 11. O-O {[%emt 0:01:12]} a6 {[%emt 0:00:27]} 12. Ne1 {[%emt 0:10:04]} Bd6 {[%emt 0:01:07]} 13. Nd3 {[%emt 0:01:15]} Ne7 {[%emt 0:01:00]} 14. e4 {[%emt 0:08:42]} dxe4 {[%emt 0:00:16]} 15. Nxe4 {[%emt 0:00:08]} Bxh2+ {[%emt 0:00:54]} 16. Kxh2 {[%emt 0:00:47]} Qh4+ {[%emt 0:00:10]} 17. Kg1 {[%emt 0:00:47]} Qxe4 {[%emt 0:00:09]} 18. Rfe1 {[%emt 0:00:32]} Nf5 {[%emt 0:08:48]} 19. Nc5 {[%emt 0:02:59]} Qxd4 {[%emt 0:02:22]} 20. Qa3 {[%emt 0:00:17]} b6 {[%emt 0:14:02]} 21. Nxe6 {[%emt 0:06:08]} fxe6 {[%emt 0:00:23]} 22. Rad1 {[%emt 0:10:56]} Qf6 {[%emt 0:11:11]} 23. Bf3 {[%emt 0:04:20]} Rae8 {[%emt 0:06:58]} 24. Qxa6 {[%emt 0:18:18]} Nh4 {[%emt 0:03:33]} 25. Rd3 {[%emt 0:02:01]} Qxb2 {[%emt 0:12:55]} 26. Qc4 {[%emt 0:03:18]} Nxf3+ {[%emt 0:00:06]} 27. Rxf3 {[%emt 0:00:35]} Rxf3 {[%emt 0:01:01]} 28. gxf3 {[%emt 0:00:08]} Qf6 {[%emt 0:01:33]} 29. Qxc7 {[%emt 0:00:16]} e5 {[%emt 0:00:12]} 30. Qc4+ {[%emt 0:04:27]} Kh8 {[%emt 0:03:37]} 31. Qe4 {[%emt 0:03:10]} Rf8 {[%emt 0:03:55]} 32. Re3 {[%emt 0:02:07]} Qg5+ {[%emt 0:02:11]} 33. Kf1 {[%emt 0:02:40]} Rc8 {[%emt 0:00:36]} 34. Re1 {[%emt 0:03:50]} Rc5 {[%emt 0:00:30]} 35. a4 {[%emt 0:05:05]} Qf4 {[%emt 0:00:50]} 36. Qxf4 {[%emt 0:03:29]} exf4 {[%emt 0:00:08]} 37. Re4 {[%emt 0:00:07]} Rf5 {[%emt 0:00:05]} 38. Re6 {[%emt 0:00:15]} Ra5 {[%emt 0:01:53]} 39. Rxb6 {[%emt 0:00:19]} Rxa4 {[%emt 0:00:04]} 40. Rb7 {[%emt 0:00:23]} Kh7 {[%emt 0:00:04]} 41. Kg2 {[%emt 0:30:23]} Kg6 {[%emt 0:30:39]} 42. Rb6+ {[%emt 0:00:22]} Kh5 {[%emt 0:01:02]} 43. Rb7 {[%emt 0:00:00]} g5 {[%emt 0:00:00]} 44. Rb6 {[%emt 0:00:00]} Ra7 {[%emt 0:00:00]} 45. Kh3 {[%emt 0:00:00]} Rg7 {[%emt 0:00:00]} 46. Ra6 {[%emt 0:00:00]} Rg6 {[%emt 0:00:00]} 47. Ra5 {[%emt 0:00:00]} Rb6 {[%emt 0:00:00]} 48. Ra2 {[%emt 0:00:00]} Rb3 {[%emt 0:00:00]} 49. Kg2 {[%emt 0:00:00]} Rb6 {[%emt 0:00:00]} 50. Ra8 {[%emt 0:00:00]} Kg6 {[%emt 0:00:00]} 51. Rg8+ {[%emt 0:00:00]} Kf5 {[%emt 0:00:00]} 52. Rh8 {[%emt 0:00:00]} Kg6 {[%emt 0:00:00]} 53. Rg8+ {[%emt 0:00:00]} Kh5 {[%emt 0:00:00]} 54. Rh8 {[%emt 0:00:00]} Kh4 {[%emt 0:00:00]} 55. Rh7 {[%emt 0:00:00]} h5 {[%emt 0:00:00]} 56. Rh8 {[%emt 0:00:00]} Rf6 {[%emt 0:00:00]} 57. Rh7 {[%emt 0:00:00]} g4 {[%emt 0:00:00]} 58. fxg4 {[%emt 0:00:00]} f3+ {[%emt 0:00:00]} 59. Kh2 {[%emt 0:00:00]} Kxg4 {[%emt 0:00:00]} 60. Ra7 {[%emt 0:00:00]} Rg6 {[%emt 0:00:00]} 61. Rf7 {[%emt 0:00:00]} Rg5 {[%emt 0:00:00]} 62. Rf8 {[%emt 0:00:00]} h4 {[%emt 0:00:51]} 63. Rf7 {[%emt 0:00:00]} Rg8 {[%emt 0:00:55]} 64. Rf6 {[%emt 0:00:00]} Ra8 {[%emt 0:03:15]} 65. Rg6+ {[%emt 0:00:00]} Kf5 {[%emt 0:00:18]} 66. Rb6 {[%emt 0:01:08]} Ra2 {[%emt 0:02:09]} 67. Rb5+ {[%emt 0:00:21]} Ke4 {[%emt 0:01:53]} 68. Rb4+ {[%emt 0:03:20]} Kd3 {[%emt 0:00:08]} 69. Rxh4 {[%emt 0:00:53]} Rxf2+ {[%emt 0:00:33]} 70. Kg3 {[%emt 0:00:26]} Ke3 {[%emt 0:00:05]} 71. Re4+ {[%emt 0:00:35]} Kxe4 {[%emt 0:00:06]} 72. Kxf2 {[%emt 0:00:12]} Kf4 {[%emt 0:00:04]} 73. Kf1 {[%emt 0:00:09]} Kg3 {[%emt 0:00:05]} 74. Kg1 {[%emt 0:00:13]} f2+ {[%emt 0:00:03]} 75. Kf1 {[%emt 0:00:06]} Kf3 {Ke1} 1/2-1/2

[Event "WTCC-65 2018"]
[Site "Radebeul"]
[Date "2018.07.13"]
[Round "7"]
[White "Hammar, Bengt"]
[Black "Weiss, Werner"]
[Result "1-0"]
[ECO "A41"]
[WhiteElo "2159"]
[BlackElo "2116"]
[Annotator "NA"]
[PlyCount "64"]
[EventDate "2018.07.07"]
[EventType "team-tourn"]
[EventCountry "GER"]
[SourceTitle "playchess.com"]
[Source "ChessBase"]
[SourceQuality "1"]
[TimeControl "40/5400+30:1800+30"]

1. d4 {[%emt 0:00:00]} d6 {[%emt 0:00:00]} 2. Nf3 {[%emt 0:00:57]} Bf5 {[%emt 0:00:54]} 3. g3 {[%emt 0:05:05]} Nd7 {[%emt 0:01:43]} 4. Bg2 {[%emt 0:00:25]} c6 {[%emt 0:00:07]} 5. O-O {[%emt 0:00:19]} Ngf6 {[%emt 0:00:40]} 6. c4 {[%emt 0:01:37]} e5 {[%emt 0:01:34]} 7. Nc3 {[%emt 0:01:07]} h6 {[%emt 0:01:06]} 8. d5 {[%emt 0:06:48]} c5 {[%emt 0:01:58]} 9. Nh4 {[%emt 0:01:24]} Bh7 {[%emt 0:00:20]} 10. e4 {[%emt 0:00:27]} Be7 {[%emt 0:01:09]} 11. Nf5 {[%emt 0:02:47]} Bxf5 {[%emt 0:00:20]} 12. exf5 {[%emt 0:00:06]} O-O {[%emt 0:04:50]} 13. a3 {[%emt 0:01:12]} a6 {[%emt 0:01:52]} 14. Qe2 {[%emt 0:01:13]} Re8 {[%emt 0:02:49]} 15. Ne4 {[%emt 0:10:27]} Nxe4 {[%emt 0:04:49]} 16. Bxe4 {[%emt 0:03:59]} Nf6 {[%emt 0:00:24]} 17. b4 {[%emt 0:02:01]} cxb4 {[%emt 0:01:15]} 18. axb4 {[%emt 0:00:11]} Rc8 {[%emt 0:00:06]} 19. Bd2 {[%emt 0:01:21]} Nxe4 {[%emt 0:23:15]} 20. Qxe4 {[%emt 0:00:31]} Bg5 {[%emt 0:00:15]} 21. Bxg5 {[%emt 0:04:20]} Qxg5 {[%emt 0:00:10]} 22. Rfd1 {[%emt 0:00:30]} g6 {[%emt 0:04:37]} 23. fxg6 {[%emt 0:02:03]} f5 {[%emt 0:01:35]} 24. Qe2 {[%emt 0:00:23]} f4 {[%emt 0:02:52]} 25. Qe4 {[%emt 0:01:29]} b5 {[%emt 0:02:08]} 26. c5 {[%emt 0:01:21]} dxc5 {[%emt 0:01:01]} 27. d6 {[%emt 0:00:34]} Rf8 {[%emt 0:19:08]} 28. d7 {[%emt 0:02:03]} Rcd8 {[%emt 0:01:14]} 29. bxc5 {[%emt 0:00:39]} Qg4 {[%emt 0:00:31]} 30. c6 {[%emt 0:03:14]} Qh3 {[%emt 0:02:55]} 31. Qd5+ {[%emt 0:00:24]} Kg7 {[%emt 0:00:21]} 32. Qxe5+ {[%emt 0:00:24]} Rf6 {[%emt 0:01:02]} 1-0